Cogmind - Beta 9.6 *** ADVENTURER MODE // 2020.05.27 @ 20:06:29 Player: Haraguro Result: Self-destructed Performance ------------- Evolutions (2) 1000 Regions Visited (5) 1000 Robots Destroyed (16) 80 Value Destroyed (286) 286 Prototype IDs (0) 0 Alien Tech Used (0) 0 Bonus (39) 39 TOTAL SCORE: 2405 Bonus ------- Follower Combat Kills 39 Cogmind --------- Core Integrity 468/550 Matter 29/300 Energy 89/125 System Corruption 0% Temperature Cool (9) Movement Core (600) Ox11 Location -8/Materials Parts ------- > --- POWER (2) -------- Light Ion Engine > --- PROPULSION (3) --- (None) > --- UTILITY (4) ------ Heat Sink Large Storage Unit Large Storage Unit > --- WEAPON (2) ------- (None) > --- INVENTORY (16) --- Light Ion Engine Fission Core Fission Core Light Fission Core Aluminum Leg Medium Storage Unit Medium Storage Unit High-capacity Storage Unit Targeting Computer Light Armor Plating EM Pulse Gun EM Pulse Gun Assault Cannon Grenade Launcher Peak State ------------ > --- POWER ------------ Light Ion Engine Light Ion Engine > --- PROPULSION ------- Carbon-fiber Leg Carbon-fiber Leg > --- UTILITY ---------- Heat Sink Large Storage Unit Large Storage Unit > --- WEAPON ----------- Light Assault Rifle Grenade Launcher > --- INVENTORY -------- Light Ion Engine Light Ion Engine Fission Core Fission Core Light Fission Core Aluminum Leg Medium Storage Unit Medium Storage Unit Targeting Computer Light Armor Plating EM Pulse Gun EM Pulse Gun Grenade Launcher Mining Claw [Rating: 15] Favorites ----------- Power Light Ion Engine Engine Light Ion Engine Propulsion Aluminum Leg Leg Aluminum Leg Utility Large Storage Unit Device Improved Terrain Scanner Storage Large Storage Unit Weapon Grenade Launcher Energy Gun EM Pulse Gun Ballistic Gun Light Assault Rifle Launcher Grenade Launcher Special Weapon Mining Laser Slashing Weapon Mining Claw Build | -11 -10 -10 -10 -9 -8 ------- Run | Scr Mat Min Exi Min Mat Slots Evolved 4 | . . . . . 4 Power 1 | . . . . . 1 Propulsion 1 | . . . . . 1 Utility 2 | . . . . . 2 Weapon . | . . . . . . Parts Attached 26 | 7 5 7 1 2 4 Power 4 | 1 . . . . 3 Engine 4 | 1 . . . . 3 Core . | . . . . . . Reactor . | . . . . . . Propulsion 8 | 2 1 4 1 . . Treads . | . . . . . . Leg 8 | 2 1 4 1 . . Wheel . | . . . . . . Hover . | . . . . . . Flight . | . . . . . . Utility 5 | 2 2 . . . 1 Device 2 | 1 . . . . 1 Storage 3 | 1 2 . . . . Processor . | . . . . . . Hackware . | . . . . . . Protection . | . . . . . . Artifact . | . . . . . . Weapon 9 | 2 2 3 . 2 . Energy Gun 2 | 1 . 1 . . . Energy Cannon . | . . . . . . Ballistic Gun 2 | . . 1 . 1 . Ballistic Cannon . | . . . . . . Launcher 3 | . 1 1 . 1 . Special Weapon 1 | 1 . . . . . Impact Weapon . | . . . . . . Slashing Weapon 1 | . 1 . . . . Piercing Weapon . | . . . . . . Special Melee Weapon . | . . . . . . Unidentified Prototypes . | . . . . . . Parts Lost 10 | . 1 3 . . 6 Power 2 | . . . . . 2 Propulsion 4 | . . 2 . . 2 Utility . | . . . . . . Weapon 4 | . 1 1 . . 2 Highest Loss Streak 6 | . 1 1 . . 6 Average Slot Usage (%) 94 | . 93 97 100 100 75 Engine 14 | . 14 14 14 14 18 Leg 25 | . 28 25 28 28 15 Device 4 | . 10 . . . 9 Storage 22 | . 15 28 28 28 18 Energy Gun 5 | . 10 6 . . . Ballistic Gun 5 | . . 4 14 8 9 Launcher 9 | . 1 16 14 19 6 Special Weapon 1 | . 3 . . . . Slashing Weapon 3 | . 8 . . . . Naked Turns . | . . . . . . Heaviest Build 43 | 11 40 41 39 41 43 Greatest Support 30 | 20 20 25 30 30 30 Greatest Overweight (x) 13 | 2 2 4 1 1 13 Average Overweight (x) . | . . 1 1 1 1 Largest Inventory Capacity 16 | 6 16 16 16 16 16 Average Capacity 12 | 5 8 16 16 16 16 Most Carried 16 | 3 13 15 16 16 15 Average Carried 11 | 2 6 14 15 15 14 Final Capacity 16 | 6 16 16 16 16 16 Final Carried 16 | 3 13 15 16 16 14 Class Distribution -------------------- 100% | Mutant Dominant Class ---------------- Mutant | -10/Materials Mutant | -10/Mines Mutant | -10/Exiles Mutant | -9/Mines Mutant | -8/Materials Resources | -11 -10 -10 -10 -9 -8 ----------- Run | Scr Mat Min Exi Min Mat Matter Collected 318 | 132 72 114 . . . Remotely . | . . . . . . Salvage Created 384 | 115 72 189 . 8 . Parts 23 | 8 3 8 . 4 . Haulers Intercepted . | . . . . . . Recyclers Shooed 2 | . . 1 . . 1 Parts Field Recycled . | . . . . . . Retrieved Matter . | . . . . . . Parts Self-Destructed . | . . . . . . Prevented . | . . . . . . Kills | -11 -10 -10 -10 -9 -8 ------- Run | Scr Mat Min Exi Min Mat Combat Hostiles Destroyed 9 | . 1 6 . 2 . Guns 1 | . 1 . . . . AOE 8 | . . 6 . 2 . Classes Destroyed 8 | 3 3 2 . . . Worker 1 | 1 . . . . . Builder 1 | . 1 . . . . Tunneler 2 | 1 . 1 . . . Recycler 2 | 1 . 1 . . . Watcher 1 | . 1 . . . . Swarmer 5 | . . 3 . 2 . Grunt 3 | . 1 2 . . . Demolisher 1 | . . 1 . . . Best Kill Streak 3 | 2 2 3 . 2 . Combat Bots Only 2 | . 1 2 . 2 . Max Kills in Single Turn 2 | 1 1 2 . 2 . Gunslinging . | . . . . . . Exploded 2 | . . 2 . 2 . Melee . | . . . . . . Uniques/NPCs Destroyed . | . . . . . . Combat | -11 -10 -10 -10 -9 -8 -------- Run | Scr Mat Min Exi Min Mat Damage Taken 1058 | 18 59 465 . 6 510 Core 129 | . . 47 . . 82 Absorbed by Shields . | . . . . . . Core Remaining (%) 90 | 100 . . . 81 . Volleys Fired 34 | 7 14 12 . 1 . Largest 2 | 2 1 2 . 2 . Hottest 140 | 140 40 70 . 60 . Shots Fired 45 | 8 14 21 . 2 . Gun 23 | 7 13 3 . . . Cannon . | . . . . . . Launcher 21 | . 1 18 . 2 . Special 1 | 1 . . . . . Kinetic . | . . . . . . Thermal 1 | 1 . . . . . Explosive 21 | . 1 18 . 2 . Electromagnetic 23 | 7 13 3 . . . Robot Hit Streak 13 | 4 7 13 . 8 . Robot Miss Streak 1 | 1 1 1 . . . Penetration Max . | . . . . . . Secondary Targets . | . . . . . . Shots Hit Robots 29 | 6 9 13 . 1 . Core Hits 21 | 4 3 12 . 2 . Critical Hits . | . . . . . . Critical Kills . | . . . . . . Critical Parts Destroyed . | . . . . . . Melee Attacks 1 | . 1 . . . . Impact . | . . . . . . Slashing 1 | . 1 . . . . Piercing . | . . . . . . Sneak Attacks 1 | . 1 . . . . Combat Hostiles . | . . . . . . Follow-up Attacks . | . . . . . . Damage Inflicted 1001 | 115 260 534 . 87 5 Guns 228 | 81 135 12 . . . Cannons . | . . . . . . Explosions 642 | . 59 496 . 87 . Melee 66 | . 66 . . . . Ramming 41 | 10 . 26 . . 5 Kinetic . | . . . . . . Thermal 48 | 24 24 . . . . Explosive 618 | . 35 496 . 87 . Electromagnetic 228 | 81 135 12 . . . Impact . | . . . . . . Slashing 66 | . 66 . . . . Piercing . | . . . . . . Highest Corruption . | . . . . . . Average Corruption . | . . . . . . Corruption Purged . | . . . . . . Overload Shots . | . . . . . . Overflow Damage 39 | . 32 7 . . . Projectiles . | . . . . . . Explosions 13 | . 6 7 . . . Melee 26 | . 26 . . . . Knockbacks 1 | . . 1 . . . Impact 1 | . . 1 . . . Kinetic . | . . . . . . Secondary . | . . . . . . Self-Inflicted Damage 161 | 18 27 116 . . . Shots 6 | 1 1 4 . . . Rammed 3 | 1 . 2 . . . Targets Rammed 9 | 4 . 3 . . 2 Kicked 6 | 3 . 1 . . 2 Crushed . | . . . . . . Highest Temperature 52 | 52 24 15 . . 7 Average Temperature 14 | 32 15 8 . . 7 Received Heat Transfer 462 | . 24 105 . . 333 Siege Activations . | . . . . . . Robots Corrupted 1 | . . 1 . . . Combat Hostiles . | . . . . . . Parts Fried 1 | . . 1 . . . Impact Corruptions . | . . . . . . Robots Melted . | . . . . . . Combat Hostiles . | . . . . . . Parts Melted . | . . . . . . Heat Transferred 100 | 50 50 . . . . Parts Sabotaged . | . . . . . . Parts Stolen . | . . . . . . Parts Stripped . | . . . . . . Power Chain Reactions 2 | 1 1 . . . . Missiles Intercepted . | . . . . . . Alert | -11 -10 -10 -10 -9 -8 ------- Run | Scr Mat Min Exi Min Mat Peak Influence 172 | 15 34 172 . 50 46 Average Influence 47 | 8 22 101 . 48 23 Maximum Alert Level . | . . . . . . Low Security (%) 100 | 100 100 100 . 100 100 Level 1 . | . . . . . . Level 2 . | . . . . . . Level 3 . | . . . . . . Level 4 . | . . . . . . Level 5 . | . . . . . . High Security . | . . . . . . Max Security . | . . . . . . Squads Dispatched 2 | . . . . . 2 Investigation . | . . . . . . Extermination . | . . . . . . Reinforcement 2 | . . . . . 2 Assault . | . . . . . . Garrison . | . . . . . . Intercept . | . . . . . . Construction Impeded 1 | . . . . . 1 Haulers Reinforced . | . . . . . . Stealth | -11 -10 -10 -10 -9 -8 --------- Run | Scr Mat Min Exi Min Mat Distress Signals 1 | . 1 . . . . Communications Jammed . | . . . . . . Distress Signals . | . . . . . . Times Spotted 35 | . 2 16 . 3 14 Peak Tracking Total 13 | . 2 7 . 3 13 Tactical Retreats 2 | . . 2 . . . Traps | -11 -10 -10 -10 -9 -8 ------- Run | Scr Mat Min Exi Min Mat Traps Triggered 1 | . 1 . . . . Indirectly . | . . . . . . Trap Hack Attempts . | . . . . . . Triggered . | . . . . . . Disarmed . | . . . . . . Reprogrammed . | . . . . . . Reused . | . . . . . . Traps Extracted . | . . . . . . Installed . | . . . . . . Triggered . | . . . . . . Machines | -11 -10 -10 -10 -9 -8 ---------- Run | Scr Mat Min Exi Min Mat Machines Disabled 2 | . 1 1 . . . Max in Single Turn 1 | . 1 1 . . . Machines Sabotaged . | . . . . . . Garrisons Compromised . | . . . . . . Overloaded Fab Kills . | . . . . . . Fab Network Shutdowns . | . . . . . . Hacking | -11 -10 -10 -10 -9 -8 --------- Run | Scr Mat Min Exi Min Mat Machines Accessed 3 | . 2 . 1 . . Terminals . | . . . . . . Fabricators . | . . . . . . Repair Stations 1 | . 1 . . . . Recycling Units 1 | . 1 . . . . Scanalyzers . | . . . . . . Garrison Access . | . . . . . . Total Hacks 25 | . 2 . 23 . . Successful 25 | . 2 . 23 . . Failed . | . . . . . . Catastrophic . | . . . . . . Database Lockouts . | . . . . . . Manual . | . . . . . . Terminals . | . . . . . . Fabricators . | . . . . . . Repair Stations 1 | . 1 . . . . Recycling Units 1 | . 1 . . . . Scanalyzers . | . . . . . . Garrison Access . | . . . . . . Terminal Hacks 23 | . . . 23 . . Record 23 | . . . 23 . . Fabricator Hacks . | . . . . . . Repair Station Hacks 1 | . 1 . . . . Scan Component 1 | . 1 . . . . Recycling Unit Hacks 1 | . 1 . . . . Process 1 | . 1 . . . . Scanalyzer . | . . . . . . Garrison Access Hacks . | . . . . . . Unauthorized Hacks . | . . . . . . Terminals . | . . . . . . Fabricators . | . . . . . . Repair Stations . | . . . . . . Recycling Units . | . . . . . . Scanalyzers . | . . . . . . Garrison Access . | . . . . . . Data Cores Recovered . | . . . . . . Used . | . . . . . . Hacking Detections 1 | . 1 . . . . Full Trace Events . | . . . . . . Feedback Events . | . . . . . . Feedback Blocked . | . . . . . . Robot Schematics Acquired . | . . . . . . Robots Built . | . . . . . . Matter . | . . . . . . Time . | . . . . . . Total Robot Build Rating . | . . . . . . Part Schematics Acquired . | . . . . . . Parts Built . | . . . . . . Matter . | . . . . . . Time . | . . . . . . Total Part Build Rating . | . . . . . . Parts Repaired . | . . . . . . Time . | . . . . . . Parts Recycled . | . . . . . . Recycled Matter 67 | . 67 . . . . Retrieved Matter . | . . . . . . Retrieved Components . | . . . . . . Parts Scanalyzed . | . . . . . . Part Schematics Acquired . | . . . . . . Parts Damaged . | . . . . . . Bothacking | -11 -10 -10 -10 -9 -8 ------------ Run | Scr Mat Min Exi Min Mat Used RIF Installer . | . . . . . . Robots Hacked . | . . . . . . Non-combat . | . . . . . . Combat . | . . . . . . Robot Hacks Applied . | . . . . . . Relay Couplers Released . | . . . . . . Robots Rewired . | . . . . . . Allies Hacked . | . . . . . . Hacks Repelled . | . . . . . . Allies | -11 -10 -10 -10 -9 -8 -------- Run | Scr Mat Min Exi Min Mat Total Allies 1 | . . 1 . . . Largest Group 1 | . . 1 . . . Highest-Rated Group 31 | . . 31 . . . Highest-Rated Ally 31 | . . 31 . . . Total Orders . | . . . . . . Ally Attacks 11 | . . 11 . . . Total Damage 185 | . . 185 . . . Kills 2 | . . 2 . . . Allies Corrupted . | . . . . . . Allies Melted . | . . . . . . Intel | -11 -10 -10 -10 -9 -8 ------- Run | Scr Mat Min Exi Min Mat Robot Analysis Total . | . . . . . . Derelict Logs Recovered 2 | . . 2 . . . Drone Launches . | . . . . . . Drone Recoveries . | . . . . . . Exploration | -11 -10 -10 -10 -9 -8 ------------- Run | Scr Mat Min Exi Min Mat Turns Passed 1527 | 162 469 401 252 78 165 Spaces Moved 956 | 108 314 224 166 48 96 Core 21 | 20 . . . . 1 Treads . | . . . . . . Legs 935 | 88 314 224 166 48 95 Wheels . | . . . . . . Hover . | . . . . . . Flight . | . . . . . . Fastest Speed 50 | 50 120 150 150 150 150 Average Speed 141 | 117 129 155 150 150 161 Slowest Speed 700 | 150 180 240 150 150 700 Overloaded Moves . | . . . . . . Propulsion Burnouts . | . . . . . . Robots Hopped . | . . . . . . Cave-ins Triggered . | . . . . . . Exploration Rate (%) 30 | 4 46 52 55 17 11 Regions Visited 5 Branch Regions 3 Pre-discovered Areas 1 | . . . 1 . . Known Exits Taken 1 | . . 1 . . . Unknown Exits Taken 4 | 1 1 . 1 1 . Scrap Searched 2 | . . 2 . . . Spaces Dug . | . . . . . . Terrain Destroyed 108 | . 8 84 . 16 . Melee . | . . . . . . Projectile . | . . . . . . AOE 108 | . 8 84 . 16 . Actions | -11 -10 -10 -10 -9 -8 --------- Run | Scr Mat Min Exi Min Mat Total 1066 | 128 360 251 170 52 105 Wait 21 | . 15 6 . . . Move 951 | 107 313 223 165 47 96 Hop . | . . . . . . Pick Up 20 | 3 11 . 3 1 2 Fast Attach 11 | 7 3 1 . . . Attach 7 | . 1 1 1 1 3 Detach . | . . . . . . Swap 8 | . 1 5 . 1 1 Drop 4 | . 1 . 1 1 1 Fire 34 | 7 14 12 . 1 . Melee 1 | . 1 . . . . Ram . | . . . . . . Kick 9 | 4 . 3 . . 2 Crush . | . . . . . . Escape Stasis . | . . . . . . Rewire . | . . . . . . Trap . | . . . . . . Miscellaneous . | . . . . . . Route ------- -11/Scrapyard -10/Materials -10/Mines -10/Exiles -9/Mines -8/Materials (discovered 1 exit: Fac) History --------- Turn | Location | Event 24 | -11/Scrapyard | Discovered new exit (range 15) 163 | -11/Scrapyard | Entered Materials 316 | -10/Materials | Build established: Mutant 609 | -10/Materials | Discovered new exit (range 10) 632 | -10/Materials | Entered Mines 726 | -10/Mines | Received a Mining Laser from a helpful Derelict 730 | -10/Mines | Assembled infested the area 812 | -10/Mines | Learned location of 1 exit from Materials 958 | -10/Mines | Identified exit to Exiles 1022 | -10/Mines | Deemed a non-threat by the Exiles lab entrance 1033 | -10/Mines | Entered Exiles 1075 | -10/Exiles | Met 8R-AWN 1101 | -10/Exiles | Met EX-HEX 1161 | -10/Exiles | Met EX-DEC 1221 | -10/Exiles | Learned location of Zion (-7) 1263 | -10/Exiles | Discovered new exit (range 14) 1285 | -10/Exiles | Entered Mines 1345 | -9/Mines | Discovered new exit (range 13) 1363 | -9/Mines | Entered Materials 1363 | -8/Materials | Evolved 4 slots: Power x1, Propulsion x1, Utility x2 1364 | -8/Materials | Identified exit to Factory 1528 | -8/Materials | Self-destructed Last Messages --------------- 01347_ K-01 Serf collects debris. PARAMETERS=POWER_1,PROPULSION_1,UTILITY_2 LOCATION=UNKNOWN GOAL=ESCAPE Loading 1 Materials exit... 01407_ Connecting with Terminal... 01407_ Current location identified: Materials 01413_ Acquired Hcp. Storage Unit. 01434_ Dropped Mining Claw. 01435_ Acquired Assault Cannon. 01447_ Kicked R-06 Scavenger out of the way. 01448_ ALERT: Hostiles spotted, dispatching reinforcements to Terminal M004. 01459_ Kicked U-05 Engineer out of the way. 01460_ ALERT: Construction progress impeded, dispatching reinforcements to local area. 01481_ Grenade Launcher destroyed. 01489_ Carbon-fiber Leg destroyed. 01524_ Lgt. Ion Engine destroyed. 01526_ Lgt. Assault Rifle destroyed. Map ----- +----------------------------------------------------+ | ?????????????????????????????????????????????????? | | ?????????????????????????????????????????????????? | | ?????????????????????????????????????????????????? | | ?????????????????????????????????????????????????? | | ?????????????????????????????????????????????????? | | ?????????????????????????????????????????????????? | | ?????????????????????????????????????????????????? | | ?????????????????????????????????????????????????? | | ?????????????????????????????????????????????????? | | ?????????????????????????????????????????????????? | | ?????????????????????????????????????????????????? | | ?????????????????????????????????????????????????? | | ?????????????????????????????????????????????????? | | ?????????????????????????????????????????????????? | | ?????????????????????????????????????????????????? | | ?????????????????????????????????????????????????? | | ?????????????????????????????????????????????????? | | ?????????????????????????????????????????????????? | | ????????????????????????########?????????????????? | | ????????????????????????+ #?????????????????? | | ????????????????????????# [ #?????????????????? | | ????????????????????????# ! #?????????????????? | | ????????????????????????# #?????????????????? | | ????????????????????????# ???????????????????? | | ?????#???????????????+??# ?????????????????????? | | ?????? ??????????????# ##@########???????????????? | | ?????? ??????????????# sss ????????? | | ??????? ?????????????####w####/#+#???????????????? | | ??????? ??????????????# g #?????????????????????? | | ???????# ?????????????# #?????????????????????? | | ???????# ?????????????# g#?????????????????????? | | ?????### ###########??# #?????????????????????? | | ?????+ / #??#Yg #?????????????????????? | | #+#??# # ####Y g#?????????????????????? | | ### # / / #?????????????????????? | | / #### #?????????????????????? | | ######## # #??# #?????????????????????? | | # #???????# # #??######?????????????????????? | | # #???????# ########?????????????????????????????? | | # #???????# #????????????????????????????????????? | | # "???????# #????????????????????????????????????? | | # #???????# #????????????????????????????????????? | | # #???????# #????????????????????????????????????? | | # ######### #????????????????????????????????????? | | # #????????????????????????????????????? | | # ######### #????????????????????????????????????? | | # #????" ## #????????????????????????????????????? | | # #??""" ## #????????????????????????????????????? | | # # """ ## #????????????????????????????????????? | | + ## #????????????????????????????????????? | +----------------------------------------------------+ Best States ------------- Heat Dissipation 41 Energy Generation 15 Energy Capacity 150 Matter Stores 235 Matter Capacity 300 Sight Range 16 Terrain Scan Range 16 Terrain Scan Density 10 Resistance: KI 20 Resistance: TH 20 Resistance: EX 20 Resistance: EM 20 Resistance: I 20 Resistance: S 20 Resistance: P 20 Evasion (%) 50 Offensive Hacking 10 Item Schematics ----------------- None Robot Schematics ------------------ None Fabricated ------------ Nothing Alien Tech Used ----------------- None Achievements -------------- None Challenges ------------ None Game ------ Seed MatterNeutrinoArmor Manual? 0 Play Time 00:35:09 Cumulative 24.7 hours Start 2020.05.27 @ 16:59:39 End 2020.05.27 @ 20:06:29 Sessions 1 Manual Loads 0 Difficulty Adventurer Special Mode None Game No. 37 Rogue 25 Adventurer 12 Explorer 0 Win Type - Total 0 Types 0/0/0/0/0/0/0 Lore% 11 Gallery% 23 Achievement% 17 Wizard Run 0 Options --------- ASCII 0 Keyboard 0 Movement Mouse Keybinds 0 Fullscreen 2 Font 18/SmallcapsGlow Map View 76x50 Tactical HUD 1 Map Filters NONE Filters NONE Steam 1 RUN: 130fb840-72a6-49da-a1b8-a63c35eb385a